[Event "Paul Kerese Mälestusfestival 2022 Välkturniir"]
[Site "Paul Kerese Mälestusfestival 2022 Kiirturniir"]
[Date "2022.07.24"]
[Round "1.6"]
[White "Kokk, Karl Mattias"]
[Black "Teelem, Lauri"]
[Result "0-1"]
[TimeControl "3 min + 2 sek iga käigu eest"]
[WhiteElo "1338"]
[BlackElo "2012"]

1. e4 {[%clk 00:03:01]} {[%emt 00:00:02]} d5 {[%clk 00:03:03]} {[%emt
00:00:02]} 2. exd5 {[%clk 00:03:00]} {[%emt 00:00:04]} Nf6 {[%clk 00:03:04]}
{[%emt 00:00:01]} 3. d4 {[%clk 00:02:59]} {[%emt 00:00:02]} Nxd5 {[%clk
00:03:05]} {[%emt 00:00:02]} 4. c4 {[%clk 00:02:59]} {[%emt 00:00:02]} Nb6
{[%clk 00:03:06]} {[%emt 00:00:01]} 5. Nc3 {[%clk 00:02:56]} {[%emt 00:00:05]}
e5 {[%clk 00:03:06]} {[%emt 00:00:02]} 6. d5 {[%clk 00:02:44]} {[%emt
00:00:14]} c6 {[%clk 00:03:06]} {[%emt 00:00:02]} 7. Nf3 {[%clk 00:02:30]}
{[%emt 00:00:15]} Bb4 {[%clk 00:03:07]} {[%emt 00:00:01]} 8. a3 {[%clk
00:02:17]} {[%emt 00:00:16]} Bxc3+ {[%clk 00:03:07]} {[%emt 00:00:02]} 9. bxc3
{[%clk 00:02:17]} {[%emt 00:00:02]} O-O {[%clk 00:03:06]} {[%emt 00:00:04]} 10.
d6 {[%clk 00:02:07]} {[%emt 00:00:11]} e4 {[%clk 00:02:48]} {[%emt 00:00:20]}
11. Ne5 {[%clk 00:00:48]} {[%emt 00:01:22]} N8d7 {[%clk 00:02:34]} {[%emt
00:00:16]} 12. Nxd7 {[%clk 00:00:41]} {[%emt 00:00:09]} Bxd7 {[%clk 00:02:34]}
{[%emt 00:00:02]} 13. c5 {[%clk 00:00:40]} {[%emt 00:00:03]} Nd5 {[%clk
00:02:34]} {[%emt 00:00:01]} 14. Bc4 {[%clk 00:00:36]} {[%emt 00:00:05]} Nxc3
{[%clk 00:02:18]} {[%emt 00:00:19]} 15. Qc2 {[%clk 00:00:36]} {[%emt 00:00:02]}
Nd5 {[%clk 00:02:13]} {[%emt 00:00:06]} 16. Bxd5 {[%clk 00:00:24]} {[%emt
00:00:14]} cxd5 {[%clk 00:02:13]} {[%emt 00:00:02]} 17. Bb2 {[%clk 00:00:24]}
{[%emt 00:00:02]} Qg5 {[%clk 00:02:08]} {[%emt 00:00:07]} 18. g3 {[%clk
00:00:15]} {[%emt 00:00:11]} Rfe8 {[%clk 00:01:49]} {[%emt 00:00:21]} 19. Bc1
{[%clk 00:00:08]} {[%emt 00:00:10]} Qh5 {[%clk 00:01:15]} {[%emt 00:00:36]} 20.
Qe2 {[%clk 00:00:04]} {[%emt 00:00:06]} Bg4 {[%clk 00:01:10]} {[%emt 00:00:06]}
21. Qe3 {[%clk 00:00:04]} {[%emt 00:00:02]} Qe5 {[%clk 00:00:51]} {[%emt
00:00:21]} 22. Rb1 {[%clk 00:00:04]} {[%emt 00:00:03]} Bf3 {[%clk 00:00:47]}
{[%emt 00:00:06]} 23. Rg1 {[%clk 00:00:04]} {[%emt 00:00:03]} d4 {[%clk
00:00:43]} {[%emt 00:00:06]} 24. Qf4 {[%emt 00:00:04]} 0-1

[Event "Paul Kerese Mälestusfestival 2022 Välkturniir"]
[Site "Paul Kerese Mälestusfestival 2022 Kiirturniir"]
[Date "2022.07.24"]
[Round "1.7"]
[White "Petrovskis, Olegs"]
[Black "Azarkevics, Aleksejs"]
[Result "1-0"]
[TimeControl "3 min + 2 sek iga käigu eest"]
[WhiteElo "1984"]
[BlackElo "1334"]

1. d4 {[%clk 00:03:02]} {[%emt 00:00:01]} d5 {[%clk 00:03:02]} {[%emt
00:00:03]} 2. c4 {[%clk 00:03:02]} {[%emt 00:00:02]} e6 {[%clk 00:03:01]}
{[%emt 00:00:03]} 3. Nc3 {[%clk 00:03:03]} Bb4 {[%clk 00:03:00]} {[%emt
00:00:03]} 4. Nf3 {[%clk 00:03:03]} {[%emt 00:00:02]} Nf6 {[%clk 00:02:59]}
{[%emt 00:00:03]} 5. Bg5 {[%clk 00:02:58]} {[%emt 00:00:08]} h6 {[%clk
00:02:58]} {[%emt 00:00:03]} 6. Bxf6 {[%clk 00:02:54]} {[%emt 00:00:06]} Bxc3+
{[%clk 00:02:57]} {[%emt 00:00:03]} 7. bxc3 {[%clk 00:02:53]} {[%emt 00:00:03]}
Qxf6 {[%clk 00:02:57]} {[%emt 00:00:02]} 8. e3 {[%clk 00:02:49]} {[%emt
00:00:06]} O-O {[%clk 00:02:57]} {[%emt 00:00:03]} 9. Qb3 {[%clk 00:02:46]}
{[%emt 00:00:05]} dxc4 {[%clk 00:02:47]} {[%emt 00:00:12]} 10. Bxc4 {[%clk
00:02:46]} {[%emt 00:00:01]} a6 {[%clk 00:02:46]} {[%emt 00:00:05]} 11. O-O
{[%clk 00:02:36]} {[%emt 00:00:11]} b5 {[%clk 00:02:46]} {[%emt 00:00:02]} 12.
Be2 {[%clk 00:02:37]} {[%emt 00:00:01]} Bb7 {[%clk 00:02:47]} {[%emt 00:00:01]}
13. a4 {[%clk 00:02:35]} {[%emt 00:00:04]} Bd5 {[%clk 00:02:36]} {[%emt
00:00:13]} 14. Qc2 {[%clk 00:02:32]} {[%emt 00:00:04]} bxa4 {[%clk 00:02:14]}
{[%emt 00:00:25]} 15. Rxa4 {[%clk 00:02:20]} {[%emt 00:00:14]} Nc6 {[%clk
00:02:10]} {[%emt 00:00:06]} 16. e4 {[%clk 00:02:13]} {[%emt 00:00:09]} Ne7
{[%clk 00:01:14]} {[%emt 00:00:57]} 17. exd5 {[%clk 00:02:10]} {[%emt
00:00:04]} Nxd5 {[%clk 00:01:15]} {[%emt 00:00:01]} 18. Ne5 {[%clk 00:01:52]}
{[%emt 00:00:20]} Rfd8 {[%clk 00:01:08]} {[%emt 00:00:09]} 19. Bf3 {[%clk
00:01:49]} {[%emt 00:00:06]} Rab8 {[%clk 00:01:02]} {[%emt 00:00:07]} 20. Nc6
{[%clk 00:01:46]} {[%emt 00:00:06]} Nb6 {[%clk 00:00:27]} {[%emt 00:00:37]} 21.
Rxa6 {[%clk 00:01:38]} {[%emt 00:00:09]} Ra8 {[%clk 00:00:22]} {[%emt
00:00:07]} 22. Rxb6 {[%clk 00:01:33]} {[%emt 00:00:07]} cxb6 {[%clk 00:00:21]}
{[%emt 00:00:03]} 23. Nxd8 {[%clk 00:01:34]} {[%emt 00:00:01]} Rxd8 {[%clk
00:00:22]} {[%emt 00:00:01]} 24. Rb1 {[%clk 00:01:33]} {[%emt 00:00:03]} Rc8
{[%clk 00:00:15]} {[%emt 00:00:09]} 25. Qd3 {[%clk 00:01:27]} {[%emt 00:00:07]}
Qg5 {[%clk 00:00:03]} {[%emt 00:00:15]} 26. h3 {[%clk 00:01:27]} {[%emt
00:00:03]} Qa5 {[%clk 00:00:04]} {[%emt 00:00:01]} 27. c4 {[%clk 00:01:18]}
{[%emt 00:00:10]} Qa6 {[%clk 00:00:04]} {[%emt 00:00:01]} 28. Be2 {[%clk
00:01:11]} {[%emt 00:00:09]} Qa5 {[%clk 00:00:05]} {[%emt 00:00:01]} 29. Qb3
{[%clk 00:01:03]} {[%emt 00:00:10]} Rb8 {[%clk 00:00:06]} {[%emt 00:00:02]} 30.
d5 {[%clk 00:01:00]} {[%emt 00:00:05]} exd5 {[%clk 00:00:07]} 31. cxd5 {[%clk
00:01:01]} Qd2 {[%clk 00:00:07]} {[%emt 00:00:01]} 32. Bf3 {[%clk 00:00:50]}
{[%emt 00:00:14]} g5 {[%clk 00:00:08]} 33. Rd1 {[%clk 00:00:50]} {[%emt
00:00:02]} Qf4 {[%clk 00:00:09]} {[%emt 00:00:01]} 34. d6 {[%clk 00:00:49]}
{[%emt 00:00:03]} Qe5 {[%clk 00:00:10]} {[%emt 00:00:01]} 35. d7 {[%clk
00:00:48]} {[%emt 00:00:03]} Rd8 {[%clk 00:00:10]} {[%emt 00:00:01]} 36. Bc6
{[%clk 00:00:39]} {[%emt 00:00:11]} Qe6 {[%clk 00:00:11]} {[%emt 00:00:02]} 37.
Qxe6 {[%clk 00:00:38]} {[%emt 00:00:03]} fxe6 {[%clk 00:00:12]} 38. Rb1 {[%clk
00:00:37]} {[%emt 00:00:03]} 1-0

[Event "Paul Kerese Mälestusfestival 2022 Välkturniir"]
[Site "Paul Kerese Mälestusfestival 2022 Kiirturniir"]
[Date "2022.07.24"]
[Round "1.8"]
[White "Jõgi, Henry"]
[Black "Olde, Margareth"]
[Result "1-0"]
[TimeControl "3 min + 2 sek iga käigu eest"]
[BlackTitle "WIM"]
[WhiteElo "1251"]
[BlackElo "1971"]

1. d4 {[%clk 00:03:03]} d5 {[%clk 00:03:00]} {[%emt 00:00:04]} 2. Bf4 {[%clk
00:03:01]} {[%emt 00:00:04]} e6 {[%clk 00:03:00]} {[%emt 00:00:02]} 3. e3
{[%clk 00:03:02]} Bd6 {[%clk 00:03:01]} {[%emt 00:00:01]} 4. Bg3 {[%clk
00:03:03]} c5 {[%clk 00:03:00]} {[%emt 00:00:03]} 5. c3 {[%clk 00:03:04]}
{[%emt 00:00:01]} Ne7 {[%clk 00:03:00]} {[%emt 00:00:02]} 6. Nd2 {[%clk
00:03:04]} {[%emt 00:00:02]} O-O {[%clk 00:03:01]} {[%emt 00:00:01]} 7. Ngf3
{[%clk 00:03:05]} {[%emt 00:00:01]} Nbc6 {[%clk 00:03:01]} {[%emt 00:00:02]} 8.
Bd3 {[%clk 00:03:04]} {[%emt 00:00:03]} c4 {[%clk 00:02:57]} {[%emt 00:00:06]}
9. Bc2 {[%clk 00:03:05]} Nf5 {[%clk 00:02:55]} {[%emt 00:00:04]} 10. Qe2 {[%clk
00:02:59]} {[%emt 00:00:08]} b5 {[%clk 00:02:53]} {[%emt 00:00:05]} 11. Bxd6
{[%clk 00:02:51]} {[%emt 00:00:10]} Qxd6 {[%clk 00:02:47]} {[%emt 00:00:07]} 12.
e4 {[%clk 00:02:49]} {[%emt 00:00:05]} dxe4 {[%clk 00:02:34]} {[%emt 00:00:16]}
13. Nxe4 {[%clk 00:02:47]} {[%emt 00:00:04]} Qe7 {[%clk 00:02:34]} {[%emt
00:00:02]} 14. Ng3 {[%clk 00:02:46]} {[%emt 00:00:04]} h6 {[%clk 00:02:23]}
{[%emt 00:00:12]} 15. O-O {[%clk 00:02:42]} {[%emt 00:00:05]} Nxg3 {[%clk
00:02:22]} {[%emt 00:00:04]} 16. fxg3 {[%clk 00:02:38]} {[%emt 00:00:06]} Bb7
{[%clk 00:02:15]} {[%emt 00:00:09]} 17. Ne5 {[%clk 00:02:35]} {[%emt 00:00:05]}
Nxe5 {[%clk 00:02:12]} {[%emt 00:00:05]} 18. Qxe5 {[%clk 00:02:34]} {[%emt
00:00:03]} b4 {[%clk 00:02:00]} {[%emt 00:00:14]} 19. Qe2 {[%clk 00:02:21]}
{[%emt 00:00:15]} bxc3 {[%clk 00:01:49]} {[%emt 00:00:13]} 20. bxc3 {[%clk
00:02:22]} Bd5 {[%clk 00:01:49]} {[%emt 00:00:01]} 21. Be4 {[%clk 00:02:21]}
{[%emt 00:00:04]} Qg5 {[%clk 00:01:41]} {[%emt 00:00:07]} 22. Bxd5 {[%clk
00:02:03]} {[%emt 00:00:22]} exd5 {[%clk 00:01:40]} {[%emt 00:00:03]} 23. Qf2
{[%clk 00:01:41]} {[%emt 00:00:24]} Rab8 {[%clk 00:01:25]} {[%emt 00:00:18]} 24.
Rab1 {[%clk 00:01:42]} {[%emt 00:00:02]} Qg6 {[%clk 00:01:25]} {[%emt
00:00:01]} 25. Rxb8 {[%clk 00:01:39]} {[%emt 00:00:05]} Rxb8 {[%clk 00:01:26]}
26. Qf5 {[%clk 00:01:39]} {[%emt 00:00:01]} Rb5 {[%clk 00:00:46]} {[%emt
00:00:42]} 27. Qxg6 {[%clk 00:01:20]} {[%emt 00:00:21]} fxg6 {[%clk 00:00:47]}
28. Re1 {[%clk 00:01:21]} {[%emt 00:00:01]} Kf7 {[%clk 00:00:38]} {[%emt
00:00:11]} 29. Re5 {[%clk 00:01:21]} {[%emt 00:00:02]} Kf6 {[%clk 00:00:40]} 30.
Kf2 {[%clk 00:01:14]} {[%emt 00:00:10]} Rb2+ {[%clk 00:00:41]} {[%emt
00:00:01]} 31. Kf3 {[%clk 00:01:15]} Rxa2 {[%clk 00:00:39]} {[%emt 00:00:05]}
32. Rxd5 {[%clk 00:01:16]} Rc2 {[%clk 00:00:39]} {[%emt 00:00:02]} 33. Rd6+
{[%clk 00:01:10]} {[%emt 00:00:08]} Ke7 {[%clk 00:00:26]} {[%emt 00:00:15]} 34.
Rxg6 {[%clk 00:01:10]} {[%emt 00:00:02]} Rxc3+ {[%clk 00:00:23]} {[%emt
00:00:05]} 35. Ke4 {[%clk 00:01:07]} {[%emt 00:00:05]} a5 {[%clk 00:00:15]}
{[%emt 00:00:11]} 36. Rxg7+ {[%emt 00:00:02]} Kf6 37. Ra7 {[%clk 00:01:06]}
{[%emt 00:00:03]} Ra3 {[%clk 00:00:18]} {[%emt 00:00:01]} 38. d5 {[%clk
00:01:04]} {[%emt 00:00:05]} c3 {[%clk 00:00:18]} {[%emt 00:00:02]} 39. d6
{[%clk 00:01:00]} {[%emt 00:00:06]} c2 {[%clk 00:00:18]} {[%emt 00:00:02]} 40.
Rc7 {[%clk 00:00:55]} {[%emt 00:00:07]} Ra2 {[%clk 00:00:07]} {[%emt 00:00:13]}
41. Kd3 {[%clk 00:00:34]} {[%emt 00:00:23]} Ke6 {[%clk 00:00:05]} {[%emt
00:00:03]} 42. Rxc2 {[%clk 00:00:28]} {[%emt 00:00:08]} Ra3+ {[%clk 00:00:06]}
43. Ke4 {[%clk 00:00:25]} {[%emt 00:00:05]} Ra4+ {[%clk 00:00:07]} {[%emt
00:00:02]} 44. Kd3 {[%clk 00:00:19]} {[%emt 00:00:08]} Kxd6 {[%clk 00:00:08]}
45. Rf2 {[%clk 00:00:17]} {[%emt 00:00:04]} Ke5 {[%clk 00:00:09]} {[%emt
00:00:02]} 46. Re2+ {[%clk 00:00:16]} {[%emt 00:00:03]} Kf5 {[%clk 00:00:10]}
47. Ke3 {[%clk 00:00:07]} {[%emt 00:00:11]} Ra3+ {[%clk 00:00:09]} {[%emt
00:00:03]} 48. Kf2 {[%clk 00:00:08]} Ra1 {[%clk 00:00:11]} 49. Re8 {[%clk
00:00:08]} {[%emt 00:00:03]} Ra2+ {[%clk 00:00:08]} {[%emt 00:00:05]} 50. Kf3
{[%clk 00:00:09]} Ra3+ {[%clk 00:00:10]} 51. Kf2 {[%clk 00:00:10]} a4 {[%clk
00:00:08]} {[%emt 00:00:04]} 52. Rh8 {[%clk 00:00:09]} {[%emt 00:00:03]} Kg6
{[%clk 00:00:06]} {[%emt 00:00:04]} 53. Ra8 {[%clk 00:00:10]} {[%emt 00:00:01]}
Ra1 {[%clk 00:00:07]} {[%emt 00:00:01]} 54. h3 {[%clk 00:00:06]} {[%emt
00:00:06]} a3 {[%clk 00:00:07]} {[%emt 00:00:02]} 55. Ra6+ {[%clk 00:00:07]}
Kg7 {[%clk 00:00:06]} {[%emt 00:00:03]} 56. g4 {[%clk 00:00:07]} {[%emt
00:00:02]} Ra2+ {[%clk 00:00:04]} {[%emt 00:00:05]} 57. Kg3 {[%clk 00:00:08]}
Ra1 {[%clk 00:00:05]} 58. Kf2 {[%clk 00:00:06]} {[%emt 00:00:04]} a2 {[%clk
00:00:05]} {[%emt 00:00:02]} 59. Kg3 {[%clk 00:00:06]} Kf7 {[%clk 00:00:06]}
{[%emt 00:00:01]} 60. Kh2 {[%clk 00:00:05]} {[%emt 00:00:04]} Ke7 {[%clk
00:00:06]} {[%emt 00:00:01]} 61. Kg3 {[%clk 00:00:05]} {[%emt 00:00:02]} Kd7
{[%clk 00:00:07]} {[%emt 00:00:01]} 62. Kh4 {[%clk 00:00:06]} Ke7 {[%clk
00:00:03]} {[%emt 00:00:06]} 63. Kh5 {[%emt 00:00:01]} Kf7 64. Kxh6 {[%clk
00:00:07]} {[%emt 00:00:02]} Kg8 {[%clk 00:00:05]} {[%emt 00:00:02]} 65. g5
{[%clk 00:00:05]} {[%emt 00:00:04]} Rg1 {[%clk 00:03:02]} {[%emt 00:00:05]} 66.
Rxa2 1-0

[Event "Paul Kerese Mälestusfestival 2022 Välkturniir"]
[Site "Paul Kerese Mälestusfestival 2022 Kiirturniir"]
[Date "????.??.??"]
[Round "2.1"]
[White "Paan, Karel"]
[Black "Agrest, Evgenij"]
[Result "0-1"]
[TimeControl "3 min + 2 sek iga käigu eest"]
[BlackTitle "GM"]
[WhiteElo "1792"]
[BlackElo "2574"]

1. Nf3 {[%clk 00:03:03]} {[%emt 00:08:54]} d5 {[%clk 00:03:03]} {[%emt
00:00:01]} 2. c4 {[%clk 00:03:04]} {[%emt 00:00:01]} d4 {[%clk 00:03:02]}
{[%emt 00:00:03]} 3. e3 {[%clk 00:03:02]} {[%emt 00:00:04]} c5 {[%clk
00:03:01]} {[%emt 00:00:04]} 4. d3 {[%clk 00:02:53]} {[%emt 00:00:10]} Nc6
{[%clk 00:03:00]} {[%emt 00:00:03]} 5. Be2 {[%clk 00:02:53]} {[%emt 00:00:02]}
e5 {[%clk 00:02:59]} {[%emt 00:00:03]} 6. O-O {[%clk 00:02:42]} {[%emt
00:00:13]} h6 {[%clk 00:03:00]} 7. Bd2 {[%clk 00:02:23]} {[%emt 00:00:22]} Bd6
{[%clk 00:02:58]} {[%emt 00:00:04]} 8. a3 {[%clk 00:02:18]} {[%emt 00:00:07]}
a5 {[%clk 00:02:58]} {[%emt 00:00:02]} 9. h3 {[%clk 00:01:57]} {[%emt
00:00:23]} Be6 {[%clk 00:02:49]} {[%emt 00:00:11]} 10. Nh2 {[%clk 00:01:55]}
{[%emt 00:00:04]} Nge7 {[%clk 00:02:45]} {[%emt 00:00:07]} 11. e4 {[%clk
00:01:49]} {[%emt 00:00:07]} Ng6 {[%clk 00:02:41]} {[%emt 00:00:06]} 12. Bh5
{[%clk 00:01:48]} {[%emt 00:00:03]} Nf4 {[%clk 00:02:38]} {[%emt 00:00:05]} 13.
Bxf4 {[%clk 00:01:40]} {[%emt 00:00:10]} exf4 {[%clk 00:02:39]} {[%emt
00:00:02]} 14. Bg4 {[%clk 00:01:25]} {[%emt 00:00:17]} Qd7 {[%clk 00:02:26]}
{[%emt 00:00:15]} 15. Nd2 {[%clk 00:01:13]} {[%emt 00:00:14]} O-O-O {[%clk
00:02:20]} {[%emt 00:00:08]} 16. Rb1 {[%clk 00:00:53]} {[%emt 00:00:22]} g6
{[%clk 00:02:14]} {[%emt 00:00:08]} 17. Bxe6 {[%clk 00:00:47]} {[%emt
00:00:08]} Qxe6 {[%clk 00:02:15]} {[%emt 00:00:02]} 18. Qa4 {[%clk 00:00:43]}
{[%emt 00:00:06]} g5 {[%clk 00:02:02]} {[%emt 00:00:15]} 19. Qb5 {[%clk
00:00:32]} {[%emt 00:00:13]} h5 {[%clk 00:01:48]} {[%emt 00:00:16]} 20. Nb3
{[%clk 00:00:32]} {[%emt 00:00:02]} g4 {[%clk 00:01:44]} {[%emt 00:00:06]} 21.
Nxa5 {[%clk 00:00:30]} {[%emt 00:00:04]} Nxa5 {[%clk 00:01:45]} {[%emt
00:00:01]} 22. Qxa5 {[%clk 00:00:31]} {[%emt 00:00:01]} gxh3 {[%clk 00:01:45]}
{[%emt 00:00:02]} 23. f3 {[%clk 00:00:04]} {[%emt 00:00:29]} Rhg8 {[%clk
00:01:41]} {[%emt 00:00:07]} 24. Rf2 {[%clk 00:00:05]} {[%emt 00:00:01]} Rg3
{[%clk 00:01:42]} 25. b4 {[%clk 00:00:06]} {[%emt 00:00:02]} cxb4 {[%clk
00:01:38]} {[%emt 00:00:06]} 26. c5 {[%clk 00:00:06]} {[%emt 00:00:02]} Bb8
{[%clk 00:01:20]} {[%emt 00:00:20]} 27. Qxb4 {[%clk 00:00:05]} {[%emt
00:00:04]} Qc6 {[%clk 00:01:20]} {[%emt 00:00:01]} 28. Qb6 {[%clk 00:00:03]}
{[%emt 00:00:04]} Rdg8 {[%clk 00:01:09]} {[%emt 00:00:12]} 0-1

[Event "Paul Kerese Mälestusfestival 2022 Välkturniir"]
[Site "Paul Kerese Mälestusfestival 2022 Kiirturniir"]
[Date "????.??.??"]
[Round "2.2"]
[White "Maiorov, Nikita"]
[Black "Protassov, Vlad"]
[Result "1-0"]
[TimeControl "3 min + 2 sek iga käigu eest"]
[WhiteTitle "GM"]
[WhiteElo "2417"]
[BlackElo "1816"]

1. d4 {[%clk 00:02:59]} {[%emt 00:00:04]} Nf6 {[%clk 00:03:03]} {[%emt
00:00:02]} 2. c4 {[%clk 00:03:00]} {[%emt 00:00:01]} e6 {[%clk 00:03:04]}
{[%emt 00:00:01]} 3. Nf3 {[%clk 00:03:01]} d5 {[%clk 00:03:05]} {[%emt
00:00:02]} 4. Nc3 {[%clk 00:03:02]} {[%emt 00:00:01]} Be7 {[%clk 00:03:04]}
{[%emt 00:00:02]} 5. Bf4 {[%clk 00:03:02]} {[%emt 00:00:02]} Nbd7 {[%clk
00:03:04]} {[%emt 00:00:03]} 6. e3 {[%clk 00:02:55]} {[%emt 00:00:08]} O-O
{[%clk 00:03:02]} {[%emt 00:00:04]} 7. c5 {[%clk 00:02:56]} {[%emt 00:00:01]}
c6 {[%clk 00:02:56]} {[%emt 00:00:08]} 8. h3 {[%clk 00:02:50]} {[%emt
00:00:07]} Re8 {[%clk 00:02:48]} {[%emt 00:00:11]} 9. Bd3 {[%clk 00:02:50]}
{[%emt 00:00:02]} b6 {[%clk 00:02:39]} {[%emt 00:00:12]} 10. b4 {[%clk
00:02:50]} {[%emt 00:00:02]} a5 {[%clk 00:02:35]} {[%emt 00:00:06]} 11. a3
{[%clk 00:02:51]} Ba6 {[%clk 00:02:32]} {[%emt 00:00:06]} 12. Bxa6 {[%clk
00:02:37]} {[%emt 00:00:16]} Rxa6 {[%clk 00:02:32]} {[%emt 00:00:01]} 13. O-O
{[%clk 00:02:37]} {[%emt 00:00:02]} b5 {[%clk 00:02:11]} {[%emt 00:00:24]} 14.
Qc2 {[%clk 00:02:35]} {[%emt 00:00:04]} 1-0

[Event "Paul Kerese Mälestusfestival 2022 Välkturniir"]
[Site "Paul Kerese Mälestusfestival 2022 Kiirturniir"]
[Date "????.??.??"]
[Round "2.3"]
[White "Chukavin, Kirill"]
[Black "Agrest, Simon"]
[Result "1-0"]
[TimeControl "3 min + 2 sek iga käigu eest"]
[WhiteTitle "FM"]
[WhiteElo "2280"]
[BlackElo "1786"]

1. e4 {[%clk 00:03:02]} {[%emt 00:00:01]} e5 {[%clk 00:03:03]} {[%emt
00:00:01]} 2. Nf3 {[%clk 00:03:03]} {[%emt 00:00:01]} Nc6 {[%clk 00:03:04]}
{[%emt 00:00:01]} 3. Nc3 {[%clk 00:02:59]} {[%emt 00:00:05]} Nf6 {[%clk
00:03:05]} {[%emt 00:00:02]} 4. d4 {[%clk 00:03:00]} {[%emt 00:00:01]} exd4
{[%clk 00:03:03]} {[%emt 00:00:04]} 5. Nxd4 {[%clk 00:03:01]} {[%emt 00:00:01]}
Bb4 {[%clk 00:02:49]} {[%emt 00:00:16]} 6. Nxc6 {[%clk 00:02:57]} {[%emt
00:00:06]} bxc6 {[%clk 00:02:49]} {[%emt 00:00:03]} 7. Bd3 {[%clk 00:02:58]}
{[%emt 00:00:01]} O-O {[%clk 00:02:36]} {[%emt 00:00:15]} 8. O-O {[%clk
00:02:58]} {[%emt 00:00:01]} d6 {[%clk 00:02:37]} {[%emt 00:00:02]} 9. Ne2
{[%clk 00:02:24]} {[%emt 00:00:36]} Bg4 {[%clk 00:02:11]} {[%emt 00:00:27]} 10.
f3 {[%clk 00:02:23]} {[%emt 00:00:03]} Bc5+ {[%clk 00:02:11]} {[%emt 00:00:02]}
11. Kh1 {[%clk 00:02:24]} {[%emt 00:00:01]} Bh5 {[%clk 00:02:02]} {[%emt
00:00:12]} 12. Bg5 {[%clk 00:02:16]} {[%emt 00:00:09]} h6 {[%clk 00:01:35]}
{[%emt 00:00:29]} 13. Bh4 {[%clk 00:02:17]} {[%emt 00:00:01]} g5 {[%clk
00:01:16]} {[%emt 00:00:22]} 14. Bf2 {[%clk 00:02:08]} {[%emt 00:00:11]} Bxf2
{[%clk 00:01:13]} {[%emt 00:00:05]} 15. Rxf2 {[%clk 00:02:09]} {[%emt
00:00:01]} Qe7 {[%clk 00:01:02]} {[%emt 00:00:13]} 16. Nd4 {[%clk 00:02:05]}
{[%emt 00:00:06]} Qe5 {[%clk 00:00:18]} {[%emt 00:00:46]} 17. Nxc6 {[%clk
00:01:38]} {[%emt 00:00:29]} Qxb2 {[%clk 00:00:12]} {[%emt 00:00:08]} 18. Ne7+
{[%clk 00:01:32]} {[%emt 00:00:08]} Kg7 {[%clk 00:00:08]} {[%emt 00:00:02]} 19.
Nf5+ {[%clk 00:01:32]} {[%emt 00:00:06]} Kh7 {[%clk 00:00:08]} {[%emt
00:00:02]} 20. Bc4 {[%clk 00:01:09]} {[%emt 00:00:25]} Bg6 {[%clk 00:00:08]}
{[%emt 00:00:02]} 21. Ne3 {[%clk 00:00:54]} {[%emt 00:00:17]} Qc3 {[%clk
00:00:07]} {[%emt 00:00:03]} 22. Qe1 {[%clk 00:00:49]} {[%emt 00:00:08]} Qxe1+
{[%clk 00:00:06]} {[%emt 00:00:03]} 23. Rxe1 {[%clk 00:00:50]} Rab8 {[%clk
00:00:07]} {[%emt 00:00:02]} 24. Bb3 {[%clk 00:00:52]} Rb6 {[%clk 00:00:05]}
{[%emt 00:00:04]} 25. Rd2 {[%clk 00:00:47]} {[%emt 00:00:06]} Nd7 {[%clk
00:00:06]} {[%emt 00:00:01]} 26. Nc4 {[%clk 00:00:44]} {[%emt 00:00:06]} Rb7
{[%clk 00:00:07]} {[%emt 00:00:01]} 27. Na5 {[%clk 00:00:40]} {[%emt 00:00:06]}
Rb6 {[%clk 00:00:07]} {[%emt 00:00:02]} 28. Nc4 {[%clk 00:00:30]} {[%emt
00:00:12]} Rb7 {[%clk 00:00:08]} 29. Ne3 {[%clk 00:00:31]} Nc5 {[%clk
00:00:08]} {[%emt 00:00:02]} 30. Nd5 {[%clk 00:00:31]} {[%emt 00:00:03]} a5
{[%clk 00:00:07]} {[%emt 00:00:03]} 31. Bc4 {[%clk 00:00:29]} {[%emt 00:00:04]}
Kg7 {[%clk 00:00:06]} {[%emt 00:00:02]} 32. h3 {[%clk 00:00:22]} {[%emt
00:00:09]} Rfb8 {[%clk 00:00:07]} 33. Nc3 {[%clk 00:00:19]} {[%emt 00:00:06]}
Rb2 {[%clk 00:00:05]} {[%emt 00:00:05]} 34. Bb3 {[%clk 00:00:19]} {[%emt
00:00:02]} Nxb3 {[%clk 00:00:04]} {[%emt 00:00:03]} 35. axb3 {[%clk 00:00:19]}
Rb6 {[%clk 00:00:04]} {[%emt 00:00:03]} 36. Na4 {[%clk 00:00:20]} Rc6 {[%clk
00:00:05]} 37. Nxb2 {[%clk 00:00:21]} {[%emt 00:00:01]} 1-0